Workbook

Sheet предлож
D2: =_xlfn.AGGREGATE(9,7,_t[план]) -> 7003 | E2: =_xlfn.AGGREGATE(9,7,_t[расчет]) -> 385 | F2: =_xlfn.AGGREGATE(9,7,_t[разница]) -> 6618
A3: №№ | B3: дата нач | C3: дата кон | D3: план | E3: расчет | F3: разница | G3: прим1 | H3: прим2 | I3: 1 | J3: 2 | K3: 3 | L3: 4 | M3: 5 | N3: 6 | O3: 7 | P3: 8 | Q3: 9 | R3: 10 | S3: 11 | T3: 12 | U3: 13 | V3: 14 | W3: 15 | X3: 16 | Y3: 17 | Z3: 18 | AA3: 19 | AB3: 20 | AC3: 21 | AD3: 22 | AE3: 23 | AF3: 24 | AG3: 25 | AH3: 26 | AI3: 27 | AJ3: 28 | AK3: 29 | AL3: 30 | AM3: 31
A4: =ROW()-ROW($A$3) -> 1 | B4: 2017-01-01 | C4: =EOMONTH(B4,0) -> 2017-01-31 | D4: 875 | E4: =schet(B4,C4,$I$4:$AM4) -> 22 | F4: =_t[[#This Row],[план]]-_t[[#This Row],[расчет]] -> 853 | S4: 1 | AM4: 1
A5: =ROW()-ROW($A$3) -> 2 | B5: =C4+1 -> 2017-02-01 | C5: =EOMONTH(B5,0) -> 2017-02-28 | D5: 875 | E5: =schet(B5,C5,$I$4:$AM5) -> 60 | F5: =_t[[#This Row],[план]]-_t[[#This Row],[расчет]] -> 815 | S5: 1
A6: 3 | B6: =C5+1 -> 2017-03-01 | C6: =EOMONTH(B6,0) -> 2017-03-31 | D6: 729 | E6: =schet(B6,C6,$I$4:$AM6) -> 44 | F6: =_t[[#This Row],[план]]-_t[[#This Row],[расчет]] -> 685 | S6: 1
A7: 4 | B7: 2017-04-01 | C7: 2017-04-30 | D7: 729 | E7: =schet(B7,C7,$I$4:$AM7) -> 34 | F7: =_t[[#This Row],[план]]-_t[[#This Row],[расчет]] -> 695 | S7: 1
A8: 5 | B8: 2017-05-01 | C8: 2017-05-31 | D8: 438 | E8: =schet(B8,C8,$I$4:$AM8) -> 36 | F8: =_t[[#This Row],[план]]-_t[[#This Row],[расчет]] -> 402 | S8: 1
A9: 6 | B9: 2017-06-01 | C9: 2017-06-30 | D9: 292 | E9: =schet(B9,C9,$I$4:$AM9) -> 34 | F9: =_t[[#This Row],[план]]-_t[[#This Row],[расчет]] -> 258 | S9: 1
A10: 7 | B10: 2017-07-01 | C10: 2017-07-31 | D10: 292 | E10: =schet(B10,C10,$I$4:$AM10) -> 36 | F10: =_t[[#This Row],[план]]-_t[[#This Row],[расчет]] -> 256 | S10: 1
A11: 8 | B11: 2017-08-01 | C11: 2017-08-31 | D11: 292 | E11: =schet(B11,C11,$I$4:$AM11) -> 35 | F11: =_t[[#This Row],[план]]-_t[[#This Row],[расчет]] -> 257 | S11: 1
A12: 9 | B12: 2017-09-01 | C12: 2017-09-30 | D12: 438 | E12: =schet(B12,C12,$I$4:$AM12) -> 34 | F12: =_t[[#This Row],[план]]-_t[[#This Row],[расчет]] -> 404 | S12: 1
A13: 10 | B13: 2017-10-01 | C13: 2017-10-31 | D13: 730 | E13: =schet(B13,C13,$I$4:$AM13) -> 15 | F13: =_t[[#This Row],[план]]-_t[[#This Row],[расчет]] -> 715
A14: 11 | B14: 2017-11-01 | C14: 2017-11-30 | D14: 730 | E14: =schet(B14,C14,$I$4:$AM14) -> 20 | F14: =_t[[#This Row],[план]]-_t[[#This Row],[расчет]] -> 710 | S14: 1
A15: 12 | B15: 2017-12-01 | C15: 2017-12-31 | D15: 583 | E15: =schet(B15,C15,$I$4:$AM15) -> 15 | F15: =_t[[#This Row],[план]]-_t[[#This Row],[расчет]] -> 568
A16: 13 | B16: 2018-01-01 | C16: 2018-01-31 | E16: =schet(B16,C16,$I$4:$AM16) -> 0 | F16: =_t[[#This Row],[план]]-_t[[#This Row],[расчет]] -> 0
A17: 14 | B17: 2018-02-01 | C17: 2018-02-28 | E17: =schet(B17,C17,$I$4:$AM17) -> 0 | F17: =_t[[#This Row],[план]]-_t[[#This Row],[расчет]] -> 0
A18: 15 | B18: 2018-03-01 | C18: 2018-03-31 | E18: =schet(B18,C18,$I$4:$AM18) -> 0 | F18: =_t[[#This Row],[план]]-_t[[#This Row],[расчет]] -> 0
A19: 16 | B19: 2018-04-01 | C19: 2018-04-30 | E19: =schet(B19,C19,$I$4:$AM19) -> 0 | F19: =_t[[#This Row],[план]]-_t[[#This Row],[расчет]] -> 0
A20: 17 | B20: 2018-05-01 | C20: 2018-05-31 | E20: =schet(B20,C20,$I$4:$AM20) -> 0 | F20: =_t[[#This Row],[план]]-_t[[#This Row],[расчет]] -> 0
A21: 18 | B21: 2018-06-01 | C21: 2018-06-30 | E21: =schet(B21,C21,$I$4:$AM21) -> 0 | F21: =_t[[#This Row],[план]]-_t[[#This Row],[расчет]] -> 0
A22: 19 | B22: 2018-07-01 | C22: 2018-07-31 | E22: =schet(B22,C22,$I$4:$AM22) -> 0 | F22: =_t[[#This Row],[план]]-_t[[#This Row],[расчет]] -> 0
A23: 20 | B23: 2018-08-01 | C23: 2018-08-31 | E23: =schet(B23,C23,$I$4:$AM23) -> 0 | F23: =_t[[#This Row],[план]]-_t[[#This Row],[расчет]] -> 0
A24: 21 | B24: 2018-09-01 | C24: 2018-09-30 | E24: =schet(B24,C24,$I$4:$AM24) -> 0 | F24: =_t[[#This Row],[план]]-_t[[#This Row],[расчет]] -> 0
A25: 22 | B25: 2018-10-01 | C25: 2018-10-31 | E25: =schet(B25,C25,$I$4:$AM25) -> 0 | F25: =_t[[#This Row],[план]]-_t[[#This Row],[расчет]] -> 0
A26: 23 | B26: 2018-11-01 | C26: 2018-11-30 | E26: =schet(B26,C26,$I$4:$AM26) -> 0 | F26: =_t[[#This Row],[план]]-_t[[#This Row],[расчет]] -> 0
A27: 24 | B27: 2018-12-01 | C27: 2018-12-31 | E27: =schet(B27,C27,$I$4:$AM27) -> 0 | F27: =_t[[#This Row],[план]]-_t[[#This Row],[расчет]] -> 0
A28: 25 | B28: 2019-01-01 | C28: 2019-01-31 | E28: =schet(B28,C28,$I$4:$AM28) -> 0 | F28: =_t[[#This Row],[план]]-_t[[#This Row],[расчет]] -> 0
A29: 26 | B29: 2019-02-01 | C29: 2019-02-28 | E29: =schet(B29,C29,$I$4:$AM29) -> 0 | F29: =_t[[#This Row],[план]]-_t[[#This Row],[расчет]] -> 0
A30: 27 | B30: 2019-03-01 | C30: 2019-03-31 | E30: =schet(B30,C30,$I$4:$AM30) -> 0 | F30: =_t[[#This Row],[план]]-_t[[#This Row],[расчет]] -> 0
A31: 28 | B31: 2019-04-01 | C31: 2019-04-30 | E31: =schet(B31,C31,$I$4:$AM31) -> 0 | F31: =_t[[#This Row],[план]]-_t[[#This Row],[расчет]] -> 0
A32: 29 | B32: 2019-05-01 | C32: 2019-05-31 | E32: =schet(B32,C32,$I$4:$AM32) -> 0 | F32: =_t[[#This Row],[план]]-_t[[#This Row],[расчет]] -> 0
A33: 30 | B33: 2019-06-01 | C33: 2019-06-30 | E33: =schet(B33,C33,$I$4:$AM33) -> 0 | F33: =_t[[#This Row],[план]]-_t[[#This Row],[расчет]] -> 0
A34: 31 | B34: 2019-07-01 | C34: 2019-07-31 | E34: =schet(B34,C34,$I$4:$AM34) -> 0 | F34: =_t[[#This Row],[план]]-_t[[#This Row],[расчет]] -> 0
A35: 32 | B35: 2019-08-01 | C35: 2019-08-31 | E35: =schet(B35,C35,$I$4:$AM35) -> 0 | F35: =_t[[#This Row],[план]]-_t[[#This Row],[расчет]] -> 0
A36: 33 | B36: 2019-09-01 | C36: 2019-09-30 | E36: =schet(B36,C36,$I$4:$AM36) -> 0 | F36: =_t[[#This Row],[план]]-_t[[#This Row],[расчет]] -> 0
A37: 34 | B37: 2019-10-01 | C37: 2019-10-31 | E37: =schet(B37,C37,$I$4:$AM37) -> 0 | F37: =_t[[#This Row],[план]]-_t[[#This Row],[расчет]] -> 0

Sheet альтерн
U1: накоп тебл чел в мес
E2: К примеру: | U2: 28 | V2: 1 | W2: 2 | X2: 3 | Y2: 4 | Z2: 5 | AA2: 6 | AB2: 7 | AC2: 8 | AD2: 9 | AE2: 10 | AF2: 11 | AG2: 12 | AH2: 13 | AI2: 14 | AJ2: 15 | AK2: 16 | AL2: 17 | AM2: 18 | AN2: 19 | AO2: 20 | AP2: 21 | AQ2: 22 | AR2: 23 | AS2: 24 | AT2: 25 | AU2: 26 | AV2: 27 | AW2: 28 | AX2: =SUM($AW2:INDEX($V2:$AV2,$U2-V$8)) -> 55 | AY2: =SUM($AW2:INDEX($V2:$AV2,$U2-W$8)) -> 81 | AZ2: =SUM($AW2:INDEX($V2:$AV2,$U2-X$8)) -> 106 | BA2: =SUM($AW2:INDEX($V2:$AV2,$U2-Y$8)) -> 130 | BB2: =SUM($AW2:INDEX($V2:$AV2,$U2-Z$8)) -> 153 | BC2: =SUM($AW2:INDEX($V2:$AV2,$U2-AA$8)) -> 175 | BD2: =SUM($AW2:INDEX($V2:$AV2,$U2-AB$8)) -> 196 | BE2: =SUM($AW2:INDEX($V2:$AV2,$U2-AC$8)) -> 216 | BF2: =SUM($AW2:INDEX($V2:$AV2,$U2-AD$8)) -> 235 | BG2: =SUM($AW2:INDEX($V2:$AV2,$U2-AE$8)) -> 253 | BH2: =SUM($AW2:INDEX($V2:$AV2,$U2-AF$8)) -> 270 | BI2: =SUM($AW2:INDEX($V2:$AV2,$U2-AG$8)) -> 286 | BJ2: =SUM($AW2:INDEX($V2:$AV2,$U2-AH$8)) -> 301 | BK2: =SUM($AW2:INDEX($V2:$AV2,$U2-AI$8)) -> 315 | BL2: =SUM($AW2:INDEX($V2:$AV2,$U2-AJ$8)) -> 328 | BM2: =SUM($AW2:INDEX($V2:$AV2,$U2-AK$8)) -> 340 | BN2: =SUM($AW2:INDEX($V2:$AV2,$U2-AL$8)) -> 351 | BO2: =SUM($AW2:INDEX($V2:$AV2,$U2-AM$8)) -> 361 | BP2: =SUM($AW2:INDEX($V2:$AV2,$U2-AN$8)) -> 370 | BQ2: =SUM($AW2:INDEX($V2:$AV2,$U2-AO$8)) -> 378 | BR2: =SUM($AW2:INDEX($V2:$AV2,$U2-AP$8)) -> 385 | BS2: =SUM($AW2:INDEX($V2:$AV2,$U2-AQ$8)) -> 391 | BT2: =SUM($AW2:INDEX($V2:$AV2,$U2-AR$8)) -> 396 | BU2: =SUM($AW2:INDEX($V2:$AV2,$U2-AS$8)) -> 400 | BV2: =SUM($AW2:INDEX($V2:$AV2,$U2-AT$8)) -> 403 | BW2: =SUM($AW2:INDEX($V2:$AV2,$U2-AU$8)) -> 405 | BX2: =SUM($AW2:INDEX($V2:$AV2,$U2-AV$8)) -> 406
U3: 29 | V3: 1 | W3: 2 | X3: 3 | Y3: 4 | Z3: 5 | AA3: 6 | AB3: 7 | AC3: 8 | AD3: 9 | AE3: 10 | AF3: 11 | AG3: 12 | AH3: 13 | AI3: 14 | AJ3: 15 | AK3: 16 | AL3: 17 | AM3: 18 | AN3: 19 | AO3: 20 | AP3: 21 | AQ3: 22 | AR3: 23 | AS3: 24 | AT3: 25 | AU3: 26 | AV3: 27 | AW3: 28 | AX3: 29 | AY3: =SUM($AX3:INDEX($V3:$AX3,$U3-V$8)) -> 57 | AZ3: =SUM($AX3:INDEX($V3:$AX3,$U3-W$8)) -> 84 | BA3: =SUM($AX3:INDEX($V3:$AX3,$U3-X$8)) -> 110 | BB3: =SUM($AX3:INDEX($V3:$AX3,$U3-Y$8)) -> 135 | BC3: =SUM($AX3:INDEX($V3:$AX3,$U3-Z$8)) -> 159 | BD3: =SUM($AX3:INDEX($V3:$AX3,$U3-AA$8)) -> 182 | BE3: =SUM($AX3:INDEX($V3:$AX3,$U3-AB$8)) -> 204 | BF3: =SUM($AX3:INDEX($V3:$AX3,$U3-AC$8)) -> 225 | BG3: =SUM($AX3:INDEX($V3:$AX3,$U3-AD$8)) -> 245 | BH3: =SUM($AX3:INDEX($V3:$AX3,$U3-AE$8)) -> 264 | BI3: =SUM($AX3:INDEX($V3:$AX3,$U3-AF$8)) -> 282 | BJ3: =SUM($AX3:INDEX($V3:$AX3,$U3-AG$8)) -> 299 | BK3: =SUM($AX3:INDEX($V3:$AX3,$U3-AH$8)) -> 315 | BL3: =SUM($AX3:INDEX($V3:$AX3,$U3-AI$8)) -> 330 | BM3: =SUM($AX3:INDEX($V3:$AX3,$U3-AJ$8)) -> 344 | BN3: =SUM($AX3:INDEX($V3:$AX3,$U3-AK$8)) -> 357 | BO3: =SUM($AX3:INDEX($V3:$AX3,$U3-AL$8)) -> 369 | BP3: =SUM($AX3:INDEX($V3:$AX3,$U3-AM$8)) -> 380 | BQ3: =SUM($AX3:INDEX($V3:$AX3,$U3-AN$8)) -> 390 | BR3: =SUM($AX3:INDEX($V3:$AX3,$U3-AO$8)) -> 399 | BS3: =SUM($AX3:INDEX($V3:$AX3,$U3-AP$8)) -> 407 | BT3: =SUM($AX3:INDEX($V3:$AX3,$U3-AQ$8)) -> 414 | BU3: =SUM($AX3:INDEX($V3:$AX3,$U3-AR$8)) -> 420 | BV3: =SUM($AX3:INDEX($V3:$AX3,$U3-AS$8)) -> 425 | BW3: =SUM($AX3:INDEX($V3:$AX3,$U3-AT$8)) -> 429 | BX3: =SUM($AX3:INDEX($V3:$AX3,$U3-AU$8)) -> 432 | BY3: =SUM($AX3:INDEX($V3:$AX3,$U3-AV$8)) -> 434
E4: Кол-во сотрудников | G4: 100 | I4: =G4*B8 -> 36500 | J4: =I5/I4 -> 0.1917808219 | U4: 30 | V4: 1 | W4: 2 | X4: 3 | Y4: 4 | Z4: 5 | AA4: 6 | AB4: 7 | AC4: 8 | AD4: 9 | AE4: 10 | AF4: 11 | AG4: 12 | AH4: 13 | AI4: 14 | AJ4: 15 | AK4: 16 | AL4: 17 | AM4: 18 | AN4: 19 | AO4: 20 | AP4: 21 | AQ4: 22 | AR4: 23 | AS4: 24 | AT4: 25 | AU4: 26 | AV4: 27 | AW4: 28 | AX4: 29 | AY4: 30 | AZ4: =SUM($AY4:INDEX($V4:$AY4,$U4-V$8)) -> 59 | BA4: =SUM($AY4:INDEX($V4:$AY4,$U4-W$8)) -> 87 | BB4: =SUM($AY4:INDEX($V4:$AY4,$U4-X$8)) -> 114 | BC4: =SUM($AY4:INDEX($V4:$AY4,$U4-Y$8)) -> 140 | BD4: =SUM($AY4:INDEX($V4:$AY4,$U4-Z$8)) -> 165 | BE4: =SUM($AY4:INDEX($V4:$AY4,$U4-AA$8)) -> 189 | BF4: =SUM($AY4:INDEX($V4:$AY4,$U4-AB$8)) -> 212 | BG4: =SUM($AY4:INDEX($V4:$AY4,$U4-AC$8)) -> 234 | BH4: =SUM($AY4:INDEX($V4:$AY4,$U4-AD$8)) -> 255 | BI4: =SUM($AY4:INDEX($V4:$AY4,$U4-AE$8)) -> 275 | BJ4: =SUM($AY4:INDEX($V4:$AY4,$U4-AF$8)) -> 294 | BK4: =SUM($AY4:INDEX($V4:$AY4,$U4-AG$8)) -> 312 | BL4: =SUM($AY4:INDEX($V4:$AY4,$U4-AH$8)) -> 329 | BM4: =SUM($AY4:INDEX($V4:$AY4,$U4-AI$8)) -> 345 | BN4: =SUM($AY4:INDEX($V4:$AY4,$U4-AJ$8)) -> 360 | BO4: =SUM($AY4:INDEX($V4:$AY4,$U4-AK$8)) -> 374 | BP4: =SUM($AY4:INDEX($V4:$AY4,$U4-AL$8)) -> 387 | BQ4: =SUM($AY4:INDEX($V4:$AY4,$U4-AM$8)) -> 399 | BR4: =SUM($AY4:INDEX($V4:$AY4,$U4-AN$8)) -> 410 | BS4: =SUM($AY4:INDEX($V4:$AY4,$U4-AO$8)) -> 420 | BT4: =SUM($AY4:INDEX($V4:$AY4,$U4-AP$8)) -> 429 | BU4: =SUM($AY4:INDEX($V4:$AY4,$U4-AQ$8)) -> 437 | BV4: =SUM($AY4:INDEX($V4:$AY4,$U4-AR$8)) -> 444 | BW4: =SUM($AY4:INDEX($V4:$AY4,$U4-AS$8)) -> 450 | BX4: =SUM($AY4:INDEX($V4:$AY4,$U4-AT$8)) -> 455 | BY4: =SUM($AY4:INDEX($V4:$AY4,$U4-AU$8)) -> 459 | BZ4: =SUM($AY4:INDEX($V4:$AY4,$U4-AV$8)) -> 462
E5: Кол-во отпусков в году | G5: =G4*2 -> 200 | H5: по 35 к.д. | I5: =100*35*2 -> 7000 | U5: 31 | V5: 1 | W5: 2 | X5: 3 | Y5: 4 | Z5: 5 | AA5: 6 | AB5: 7 | AC5: 8 | AD5: 9 | AE5: 10 | AF5: 11 | AG5: 12 | AH5: 13 | AI5: 14 | AJ5: 15 | AK5: 16 | AL5: 17 | AM5: 18 | AN5: 19 | AO5: 20 | AP5: 21 | AQ5: 22 | AR5: 23 | AS5: 24 | AT5: 25 | AU5: 26 | AV5: 27 | AW5: 28 | AX5: 29 | AY5: 30 | AZ5: 31 | BA5: =SUM($AZ5:INDEX($V5:$AZ5,$U5-V$8)) -> 61 | BB5: =SUM($AZ5:INDEX($V5:$AZ5,$U5-W$8)) -> 90 | BC5: =SUM($AZ5:INDEX($V5:$AZ5,$U5-X$8)) -> 118 | BD5: =SUM($AZ5:INDEX($V5:$AZ5,$U5-Y$8)) -> 145 | BE5: =SUM($AZ5:INDEX($V5:$AZ5,$U5-Z$8)) -> 171 | BF5: =SUM($AZ5:INDEX($V5:$AZ5,$U5-AA$8)) -> 196 | BG5: =SUM($AZ5:INDEX($V5:$AZ5,$U5-AB$8)) -> 220 | BH5: =SUM($AZ5:INDEX($V5:$AZ5,$U5-AC$8)) -> 243 | BI5: =SUM($AZ5:INDEX($V5:$AZ5,$U5-AD$8)) -> 265 | BJ5: =SUM($AZ5:INDEX($V5:$AZ5,$U5-AE$8)) -> 286 | BK5: =SUM($AZ5:INDEX($V5:$AZ5,$U5-AF$8)) -> 306 | BL5: =SUM($AZ5:INDEX($V5:$AZ5,$U5-AG$8)) -> 325 | BM5: =SUM($AZ5:INDEX($V5:$AZ5,$U5-AH$8)) -> 343 | BN5: =SUM($AZ5:INDEX($V5:$AZ5,$U5-AI$8)) -> 360 | BO5: =SUM($AZ5:INDEX($V5:$AZ5,$U5-AJ$8)) -> 376 | BP5: =SUM($AZ5:INDEX($V5:$AZ5,$U5-AK$8)) -> 391 | BQ5: =SUM($AZ5:INDEX($V5:$AZ5,$U5-AL$8)) -> 405 | BR5: =SUM($AZ5:INDEX($V5:$AZ5,$U5-AM$8)) -> 418 | BS5: =SUM($AZ5:INDEX($V5:$AZ5,$U5-AN$8)) -> 430 | BT5: =SUM($AZ5:INDEX($V5:$AZ5,$U5-AO$8)) -> 441 | BU5: =SUM($AZ5:INDEX($V5:$AZ5,$U5-AP$8)) -> 451 | BV5: =SUM($AZ5:INDEX($V5:$AZ5,$U5-AQ$8)) -> 460 | BW5: =SUM($AZ5:INDEX($V5:$AZ5,$U5-AR$8)) -> 468 | BX5: =SUM($AZ5:INDEX($V5:$AZ5,$U5-AS$8)) -> 475 | BY5: =SUM($AZ5:INDEX($V5:$AZ5,$U5-AT$8)) -> 481 | BZ5: =SUM($AZ5:INDEX($V5:$AZ5,$U5-AU$8)) -> 486 | CA5: =SUM($AZ5:INDEX($V5:$AZ5,$U5-AV$8)) -> 490
B7: 2017 | E7: Квота % отсутствия человеко-дней в месяце от состава компании (т.е. - 100 человек * кол-во дней в месяце) | V7: осн расчет уход в отпуск по кал дням
B8: =SUM(B9:B20) -> 365 | E8: Месяц | F8: чел-дни | G8: % | H8: отпуск чел-дни план | I8: отпуск чел-дни расчет | K8: чел-дни в мес | L8: чел в день | M8: округл чел в день | N8: округл чел-дни в мес | O8: разница округл и матем чел в день | P8: позиция разницы в накоп тебл чел в мес | Q8: поз не более для корректировки в начале мес | R8: размер корректировки в начал мес | T8: поз точно для корректировки в середине мес | V8: 1 | W8: 2 | X8: 3 | Y8: 4 | Z8: 5 | AA8: 6 | AB8: 7 | AC8: 8 | AD8: 9 | AE8: 10 | AF8: 11 | AG8: 12 | AH8: 13 | AI8: 14 | AJ8: 15 | AK8: 16 | AL8: 17 | AM8: 18 | AN8: 19 | AO8: 20 | AP8: 21 | AQ8: 22 | AR8: 23 | AS8: 24 | AT8: 25 | AU8: 26 | AV8: 27 | AW8: 28 | AX8: 29 | AY8: 30 | AZ8: 31
A9: 1 | B9: =DAY(DATE($B$7,A9+1,)) -> 31 | C9: =DATE($B$7,A9,1) -> 2017-01-01 | D9: =DATE($B$7,A9,B9) -> 2017-01-31 | E9: Январь | F9: =B9*$I$4/$B$8 -> 3100 | G9: =30*(1/2.4) -> 12.5 | H9: =$I$5*G9/100 -> 875 | I9: =SUMPRODUCT(($B9+1-$V$8:$AZ$8)*V9:AZ9) -> 875 | J9: =SUM((DATE($B$7,$A9,$V$8:$AZ$8)>=$C9)*(DATE($B$7,$A9,$V$8:$AZ$8)+COLUMN($A:$AH)<=$D9)*$V$9:$AZ9) ->  | K9: =(1+B9)*B9/2 -> 496 | L9: =H9/K9 -> 1.764112903 | M9: =ROUND(L9,) -> 2 | N9: =M9*K9 -> 992 | O9: =N9-H9 -> 117 | P9: =MATCH(ABS(O9),INDEX($V$2:$CD$5,$B9-27,)) -> 33 | Q9: =MAX(,P9-B9+1) -> 3 | R9: =IF(P9=0,,INDEX($V$2:$CD$5,$B9-27,$P9)) -> 90 | S9: =IF(O9=0,,O9-R9*SIGN($O9)) -> 27 | T9: =ABS(IF(Q9=0,P9,ABS(S9))-B9-1) -> 5 | V9: =IF(V$8<=$B9,$M9-SIGN($O9)*(V$8<=$Q9)-SIGN($O9)*(V$8=$T9),) -> 1 | W9: 1 | X9: 1 | Y9: 2 | Z9: 1 | AA9: 2 | AB9: 2 | AC9: 2 | AD9: 2 | AE9: 2 | AF9: 2 | AG9: 2 | AH9: 2 | AI9: 2 | AJ9: 2 | AK9: 2 | AL9: 2 | AM9: 2 | AN9: 2 | AO9: 2 | AP9: 2 | AQ9: 2 | AR9: 2 | AS9: 2 | AT9: 2 | AU9: 2 | AV9: 2 | AW9: 2 | AX9: 2 | AY9: 2 | AZ9: 2
A10: 2 | B10: =DAY(DATE($B$7,A10+1,)) -> 28 | C10: =DATE($B$7,A10,1) -> 2017-02-01 | D10: =DATE($B$7,A10,B10) -> 2017-02-28 | E10: Февраль | F10: =B10*$I$4/$B$8 -> 2800 | G10: =30*(1/2.4) -> 12.5 | H10: =$I$5*G10/100 -> 875 | I10: =SUMPRODUCT(($B10+1-$V$8:$AZ$8)*V10:AZ10) -> 875 | J10: =SUM((DATE($B$7,$A10,$V$8:$AZ$8)>=$C10)*(DATE($B$7,$A10,$V$8:$AZ$8)+ROW($1:$34)<=$D10)*$V$9:$AZ10) ->  | K10: =(1+B10)*B10/2 -> 406 | L10: =H10/K10 -> 2.155172414 | M10: =ROUND(L10,) -> 2 | N10: =M10*K10 -> 812 | O10: =N10-H10 -> -63 | P10: 29 | Q10: 2 | R10: =IF(P10=0,,INDEX($V$2:$CD$5,$B10-27,$P10)) -> 55 | S10: =IF(O10=0,,O10-R10*SIGN($O10)) -> -8 | T10: =ABS(IF(Q10=0,P10,ABS(S10))-B10-1) -> 21 | V10: =IF(V$8<=$B10,$M10-SIGN($O10)*(V$8<=$Q10)-SIGN($O10)*(V$8=$T10),) -> 3 | W10: =IF(W$8<=$B10,$M10-SIGN($O10)*(W$8<=$Q10)-SIGN($O10)*(W$8=$T10),) -> 3 | X10: 2 | Y10: 2 | Z10: 2 | AA10: 2 | AB10: 2 | AC10: 2 | AD10: 2 | AE10: 2 | AF10: 2 | AG10: =IF(AG$8<=$B10,$M10-SIGN($O10)*(AG$8<=$Q10)-SIGN($O10)*(AG$8=$T10),) -> 2 | AH10: 2 | AI10: 2 | AJ10: 2 | AK10: 2 | AL10: 2 | AM10: 2 | AN10: 2 | AO10: 2 | AP10: 3 | AQ10: =IF(AQ$8<=$B10,$M10-SIGN($O10)*(AQ$8<=$Q10)-SIGN($O10)*(AQ$8=$T10),) -> 2 | AR10: 2 | AS10: 2 | AT10: 2 | AU10: 2 | AV10: 2 | AW10: 2 | AX10: 0 | AY10: 0 | AZ10: 0
A11: 3 | B11: 31 | C11: 2017-03-01 | D11: 2017-03-31 | E11: Март | F11: 3100 | G11: =25*(1/2.4) -> 10.41666667 | H11: 729.1666667 | I11: 716 | J11: =SUM((DATE($B$7,$A11,$V$8:$AZ$8)>=$C11)*(DATE($B$7,$A11,$V$8:$AZ$8)+ROW($1:$34)<=$D11)*$V$9:$AZ11) ->  | K11: 496 | L11: 1.470094086 | M11: 1 | N11: 496 | O11: -233.1666667 | P11: 38 | Q11: 8 | R11: 220 | S11: -13.16666667 | T11: 18.83333333 | V11: 2 | W11: 2 | X11: 2 | Y11: 2 | Z11: 2 | AA11: 2 | AB11: 2 | AC11: 2 | AD11: 1 | AE11: 1 | AF11: 1 | AG11: 1 | AH11: 1 | AI11: 1 | AJ11: 1 | AK11: 1 | AL11: 1 | AM11: 1 | AN11: 1 | AO11: 1 | AP11: 1 | AQ11: 1 | AR11: 1 | AS11: 1 | AT11: 1 | AU11: 1 | AV11: 1 | AW11: 1 | AX11: 1 | AY11: 1 | AZ11: 1
A12: 4 | B12: 30 | C12: 2017-04-01 | D12: 2017-04-30 | E12: Апрель | F12: 3000 | G12: =25*(1/2.4) -> 10.41666667 | H12: 729.1666667 | I12: 741 | J12: =SUM((DATE($B$7,$A12,$V$8:$AZ$8)>=$C12)*(DATE($B$7,$A12,$V$8:$AZ$8)+ROW($1:$34)<=$D12)*$V$9:$AZ12) ->  | K12: 465 | L12: 1.568100358 | M12: 2 | N12: 930 | O12: 200.8333333 | P12: 36 | Q12: 7 | R12: 189 | S12: 11.83333333 | T12: 19.16666667 | V12: 1 | W12: 1 | X12: 1 | Y12: 1 | Z12: 1 | AA12: 1 | AB12: 1 | AC12: 2 | AD12: 2 | AE12: 2 | AF12: 2 | AG12: 2 | AH12: 2 | AI12: 2 | AJ12: 2 | AK12: 2 | AL12: 2 | AM12: 2 | AN12: 2 | AO12: 2 | AP12: 2 | AQ12: 2 | AR12: 2 | AS12: 2 | AT12: 2 | AU12: 2 | AV12: 2 | AW12: 2 | AX12: 2 | AY12: 2 | AZ12: 0
A13: 5 | B13: 31 | C13: 2017-05-01 | D13: 2017-05-31 | E13: Май | F13: 3100 | G13: =15*(1/2.4) -> 6.25 | H13: 437.5 | I13: 465 | J13: =SUM((DATE($B$7,$A13,$V$8:$AZ$8)>=$C13)*(DATE($B$7,$A13,$V$8:$AZ$8)+ROW($1:$34)<=$D13)*$V$9:$AZ13) ->  | K13: 496 | L13: 0.8820564516 | M13: 1 | N13: 496 | O13: 58.5 | P13: 31 | Q13: 1 | R13: 31 | S13: 27.5 | T13: 4.5 | V13: 0 | W13: 1 | X13: 1 | Y13: 1 | Z13: 1 | AA13: 1 | AB13: 1 | AC13: 1 | AD13: 1 | AE13: 1 | AF13: 1 | AG13: 1 | AH13: 1 | AI13: 1 | AJ13: 1 | AK13: 1 | AL13: 1 | AM13: 1 | AN13: 1 | AO13: 1 | AP13: 1 | AQ13: 1 | AR13: 1 | AS13: 1 | AT13: 1 | AU13: 1 | AV13: 1 | AW13: 1 | AX13: 1 | AY13: 1 | AZ13: 1
A14: 6 | B14: 30 | C14: 2017-06-01 | D14: 2017-06-30 | E14: Июнь | F14: 3000 | G14: =10*(1/2.4) -> 4.166666667 | H14: 291.6666667 | I14: 300 | J14: =SUM((DATE($B$7,$A14,$V$8:$AZ$8)>=$C14)*(DATE($B$7,$A14,$V$8:$AZ$8)+ROW($1:$34)<=$D14)*$V$9:$AZ14) ->  | K14: 465 | L14: 0.6272401434 | M14: 1 | N14: 465 | O14: 173.3333333 | P14: 35 | Q14: 6 | R14: 165 | S14: 8.333333333 | T14: 22.66666667 | V14: 0 | W14: 0 | X14: 0 | Y14: 0 | Z14: 0 | AA14: 0 | AB14: 1 | AC14: 1 | AD14: 1 | AE14: 1 | AF14: 1 | AG14: 1 | AH14: 1 | AI14: 1 | AJ14: 1 | AK14: 1 | AL14: 1 | AM14: 1 | AN14: 1 | AO14: 1 | AP14: 1 | AQ14: 1 | AR14: 1 | AS14: 1 | AT14: 1 | AU14: 1 | AV14: 1 | AW14: 1 | AX14: 1 | AY14: 1 | AZ14: 0
A15: 7 | B15: 31 | C15: 2017-07-01 | D15: 2017-07-31 | E15: Июль | F15: 3100 | G15: =10*(1/2.4) -> 4.166666667 | H15: 291.6666667 | I15: 300 | J15: =SUM((DATE($B$7,$A15,$V$8:$AZ$8)>=$C15)*(DATE($B$7,$A15,$V$8:$AZ$8)+ROW($1:$34)<=$D15)*$V$9:$AZ15) ->  | K15: 496 | L15: 0.5880376344 | M15: 1 | N15: 496 | O15: 204.3333333 | P15: 37 | Q15: 7 | R15: 196 | S15: 8.333333333 | T15: 23.66666667 | V15: 0 | W15: 0 | X15: 0 | Y15: 0 | Z15: 0 | AA15: 0 | AB15: 0 | AC15: 1 | AD15: 1 | AE15: 1 | AF15: 1 | AG15: 1 | AH15: 1 | AI15: 1 | AJ15: 1 | AK15: 1 | AL15: 1 | AM15: 1 | AN15: 1 | AO15: 1 | AP15: 1 | AQ15: 1 | AR15: 1 | AS15: 1 | AT15: 1 | AU15: 1 | AV15: 1 | AW15: 1 | AX15: 1 | AY15: 1 | AZ15: 1
A16: 8 | B16: 31 | C16: 2017-08-01 | D16: 2017-08-31 | E16: Август | F16: 3100 | G16: =10*(1/2.4) -> 4.166666667 | H16: 291.6666667 | I16: 300 | J16: =SUM((DATE($B$7,$A16,$V$8:$AZ$8)>=$C16)*(DATE($B$7,$A16,$V$8:$AZ$8)+ROW($1:$34)<=$D16)*$V$9:$AZ16) ->  | K16: 496 | L16: 0.5880376344 | M16: 1 | N16: 496 | O16: 204.3333333 | P16: 37 | Q16: 7 | R16: 196 | S16: 8.333333333 | T16: 23.66666667 | V16: 0 | W16: 0 | X16: 0 | Y16: 0 | Z16: 0 | AA16: 0 | AB16: 0 | AC16: 1 | AD16: 1 | AE16: 1 | AF16: 1 | AG16: 1 | AH16: 1 | AI16: 1 | AJ16: 1 | AK16: 1 | AL16: 1 | AM16: 1 | AN16: 1 | AO16: 1 | AP16: 1 | AQ16: 1 | AR16: 1 | AS16: 1 | AT16: 1 | AU16: 1 | AV16: 1 | AW16: 1 | AX16: 1 | AY16: 1 | AZ16: 1
A17: 9 | B17: 30 | C17: 2017-09-01 | D17: 2017-09-30 | E17: Сентябрь | F17: 3000 | G17: =15*(1/2.4) -> 6.25 | H17: 437.5 | I17: 438 | J17: =SUM((DATE($B$7,$A17,$V$8:$AZ$8)>=$C17)*(DATE($B$7,$A17,$V$8:$AZ$8)+ROW($1:$34)<=$D17)*$V$9:$AZ17) ->  | K17: 465 | L17: 0.9408602151 | M17: 1 | N17: 465 | O17: 27.5 | P17: 27 | Q17: 0 | R17: 27 | S17: 0.5 | T17: 4 | V17: 1 | W17: =IF(W$8<=$B17,$M17-SIGN($O17)*(W$8<=$Q17)-SIGN($O17)*(W$8=$T17),) -> 1 | X17: 1 | Y17: 0 | Z17: 1 | AA17: 1 | AB17: 1 | AC17: 1 | AD17: 1 | AE17: 1 | AF17: 1 | AG17: 1 | AH17: 1 | AI17: 1 | AJ17: 1 | AK17: 1 | AL17: =IF(AL$8<=$B17,$M17-SIGN($O17)*(AL$8<=$Q17)-SIGN($O17)*(AL$8=$T17),) -> 1 | AM17: 1 | AN17: 1 | AO17: 1 | AP17: 1 | AQ17: 1 | AR17: 1 | AS17: 1 | AT17: 1 | AU17: 1 | AV17: 1 | AW17: 1 | AX17: 1 | AY17: 1 | AZ17: 0
A18: 10 | B18: 31 | C18: 2017-10-01 | D18: 2017-10-31 | E18: Октябрь | F18: 3100 | G18: =25*(1/2.4) -> 10.41666667 | H18: 729.1666667 | I18: 716 | J18: =SUM((DATE($B$7,$A18,$V$8:$AZ$8)>=$C18)*(DATE($B$7,$A18,$V$8:$AZ$8)+ROW($1:$34)<=$D18)*$V$9:$AZ18) ->  | K18: 496 | L18: 1.470094086 | M18: 1 | N18: 496 | O18: -233.1666667 | P18: 38 | Q18: 8 | R18: 220 | S18: -13.16666667 | T18: 18.83333333 | V18: 2 | W18: 2 | X18: 2 | Y18: 2 | Z18: 2 | AA18: 2 | AB18: 2 | AC18: 2 | AD18: 1 | AE18: 1 | AF18: 1 | AG18: 1 | AH18: 1 | AI18: 1 | AJ18: 1 | AK18: 1 | AL18: 1 | AM18: 1 | AN18: 1 | AO18: 1 | AP18: 1 | AQ18: 1 | AR18: 1 | AS18: 1 | AT18: 1 | AU18: 1 | AV18: 1 | AW18: 1 | AX18: 1 | AY18: 1 | AZ18: 1
A19: 11 | B19: 30 | C19: 2017-11-01 | D19: 2017-11-30 | E19: Ноябрь | F19: 3000 | G19: =25*(1/2.4) -> 10.41666667 | H19: 729.1666667 | I19: 741 | J19: =SUM((DATE($B$7,$A19,$V$8:$AZ$8)>=$C19)*(DATE($B$7,$A19,$V$8:$AZ$8)+ROW($1:$34)<=$D19)*$V$9:$AZ19) ->  | K19: 465 | L19: 1.568100358 | M19: 2 | N19: 930 | O19: 200.8333333 | P19: 36 | Q19: 7 | R19: 189 | S19: 11.83333333 | T19: 19.16666667 | V19: 1 | W19: 1 | X19: 1 | Y19: 1 | Z19: 1 | AA19: 1 | AB19: 1 | AC19: 2 | AD19: 2 | AE19: 2 | AF19: 2 | AG19: 2 | AH19: 2 | AI19: 2 | AJ19: 2 | AK19: 2 | AL19: 2 | AM19: 2 | AN19: 2 | AO19: 2 | AP19: 2 | AQ19: 2 | AR19: 2 | AS19: 2 | AT19: 2 | AU19: 2 | AV19: 2 | AW19: 2 | AX19: 2 | AY19: 2 | AZ19: 0
A20: 12 | B20: 31 | C20: 2017-12-01 | D20: 2017-12-31 | E20: Декабрь | F20: 3100 | G20: =20*(1/2.4) -> 8.333333333 | H20: 583.3333333 | I20: 557 | J20: =SUM((DATE($B$7,$A20,$V$8:$AZ$8)>=$C20)*(DATE($B$7,$A20,$V$8:$AZ$8)+ROW($1:$34)<=$D20)*$V$9:$AZ20) ->  | K20: 496 | L20: 1.176075269 | M20: 1 | N20: 496 | O20: -87.33333333 | P20: 32 | Q20: 2 | R20: 61 | S20: -26.33333333 | T20: 5.666666667 | V20: 2 | W20: 2 | X20: 1 | Y20: 1 | Z20: 1 | AA20: 1 | AB20: 1 | AC20: 1 | AD20: 1 | AE20: 1 | AF20: 1 | AG20: 1 | AH20: 1 | AI20: 1 | AJ20: 1 | AK20: 1 | AL20: 1 | AM20: 1 | AN20: 1 | AO20: 1 | AP20: 1 | AQ20: 1 | AR20: 1 | AS20: 1 | AT20: 1 | AU20: 1 | AV20: 1 | AW20: 1 | AX20: 1 | AY20: 1 | AZ20: 1
E21: Итого: | F21: =SUM(F9:F20) -> 36500 | G21: =SUM(G9:G20) -> 100 | H21: =SUM(H9:H20) -> 7000 | I21: =SUM(I9:I20) -> 7024 | N21: =SUM(N9:N20) -> 7570 | O21: =SUM(O9:O20) -> 570 | R21: =SUM(R9:R20*SIGN(O9:O20)) -> 527 | S21: =SUM(S9:S20) -> 43
I22: =I21-H21 -> 24 | O22: =N21-O21 -> 7000 | S22: =R21+S21 -> 570
E23: =1/2.4 -> 0.4166666667

Sheet Определение % уходящих в отпуск
T1: накоп тебл чел в мес
E2: К примеру: | T2: 28 | U2: 1 | V2: 2 | W2: 3 | X2: 4 | Y2: 5 | Z2: 6 | AA2: 7 | AB2: 8 | AC2: 9 | AD2: 10 | AE2: 11 | AF2: 12 | AG2: 13 | AH2: 14 | AI2: 15 | AJ2: 16 | AK2: 17 | AL2: 18 | AM2: 19 | AN2: 20 | AO2: 21 | AP2: 22 | AQ2: 23 | AR2: 24 | AS2: 25 | AT2: 26 | AU2: 27 | AV2: 28 | AW2: =SUM($AV2:INDEX($U2:$AU2,$T2-U$8)) -> 55 | AX2: =SUM($AV2:INDEX($U2:$AU2,$T2-V$8)) -> 81 | AY2: =SUM($AV2:INDEX($U2:$AU2,$T2-W$8)) -> 106 | AZ2: =SUM($AV2:INDEX($U2:$AU2,$T2-X$8)) -> 130 | BA2: =SUM($AV2:INDEX($U2:$AU2,$T2-Y$8)) -> 153 | BB2: =SUM($AV2:INDEX($U2:$AU2,$T2-Z$8)) -> 175 | BC2: =SUM($AV2:INDEX($U2:$AU2,$T2-AA$8)) -> 196 | BD2: =SUM($AV2:INDEX($U2:$AU2,$T2-AB$8)) -> 216 | BE2: =SUM($AV2:INDEX($U2:$AU2,$T2-AC$8)) -> 235 | BF2: =SUM($AV2:INDEX($U2:$AU2,$T2-AD$8)) -> 253 | BG2: =SUM($AV2:INDEX($U2:$AU2,$T2-AE$8)) -> 270 | BH2: =SUM($AV2:INDEX($U2:$AU2,$T2-AF$8)) -> 286 | BI2: =SUM($AV2:INDEX($U2:$AU2,$T2-AG$8)) -> 301 | BJ2: =SUM($AV2:INDEX($U2:$AU2,$T2-AH$8)) -> 315 | BK2: =SUM($AV2:INDEX($U2:$AU2,$T2-AI$8)) -> 328 | BL2: =SUM($AV2:INDEX($U2:$AU2,$T2-AJ$8)) -> 340 | BM2: =SUM($AV2:INDEX($U2:$AU2,$T2-AK$8)) -> 351 | BN2: =SUM($AV2:INDEX($U2:$AU2,$T2-AL$8)) -> 361 | BO2: =SUM($AV2:INDEX($U2:$AU2,$T2-AM$8)) -> 370 | BP2: =SUM($AV2:INDEX($U2:$AU2,$T2-AN$8)) -> 378 | BQ2: =SUM($AV2:INDEX($U2:$AU2,$T2-AO$8)) -> 385 | BR2: =SUM($AV2:INDEX($U2:$AU2,$T2-AP$8)) -> 391 | BS2: =SUM($AV2:INDEX($U2:$AU2,$T2-AQ$8)) -> 396 | BT2: =SUM($AV2:INDEX($U2:$AU2,$T2-AR$8)) -> 400 | BU2: =SUM($AV2:INDEX($U2:$AU2,$T2-AS$8)) -> 403 | BV2: =SUM($AV2:INDEX($U2:$AU2,$T2-AT$8)) -> 405 | BW2: =SUM($AV2:INDEX($U2:$AU2,$T2-AU$8)) -> 406
T3: 29 | U3: 1 | V3: 2 | W3: 3 | X3: 4 | Y3: 5 | Z3: 6 | AA3: 7 | AB3: 8 | AC3: 9 | AD3: 10 | AE3: 11 | AF3: 12 | AG3: 13 | AH3: 14 | AI3: 15 | AJ3: 16 | AK3: 17 | AL3: 18 | AM3: 19 | AN3: 20 | AO3: 21 | AP3: 22 | AQ3: 23 | AR3: 24 | AS3: 25 | AT3: 26 | AU3: 27 | AV3: 28 | AW3: 29 | AX3: =SUM($AW3:INDEX($U3:$AW3,$T3-U$8)) -> 57 | AY3: =SUM($AW3:INDEX($U3:$AW3,$T3-V$8)) -> 84 | AZ3: =SUM($AW3:INDEX($U3:$AW3,$T3-W$8)) -> 110 | BA3: =SUM($AW3:INDEX($U3:$AW3,$T3-X$8)) -> 135 | BB3: =SUM($AW3:INDEX($U3:$AW3,$T3-Y$8)) -> 159 | BC3: =SUM($AW3:INDEX($U3:$AW3,$T3-Z$8)) -> 182 | BD3: =SUM($AW3:INDEX($U3:$AW3,$T3-AA$8)) -> 204 | BE3: =SUM($AW3:INDEX($U3:$AW3,$T3-AB$8)) -> 225 | BF3: =SUM($AW3:INDEX($U3:$AW3,$T3-AC$8)) -> 245 | BG3: =SUM($AW3:INDEX($U3:$AW3,$T3-AD$8)) -> 264 | BH3: =SUM($AW3:INDEX($U3:$AW3,$T3-AE$8)) -> 282 | BI3: =SUM($AW3:INDEX($U3:$AW3,$T3-AF$8)) -> 299 | BJ3: =SUM($AW3:INDEX($U3:$AW3,$T3-AG$8)) -> 315 | BK3: =SUM($AW3:INDEX($U3:$AW3,$T3-AH$8)) -> 330 | BL3: =SUM($AW3:INDEX($U3:$AW3,$T3-AI$8)) -> 344 | BM3: =SUM($AW3:INDEX($U3:$AW3,$T3-AJ$8)) -> 357 | BN3: =SUM($AW3:INDEX($U3:$AW3,$T3-AK$8)) -> 369 | BO3: =SUM($AW3:INDEX($U3:$AW3,$T3-AL$8)) -> 380 | BP3: =SUM($AW3:INDEX($U3:$AW3,$T3-AM$8)) -> 390 | BQ3: =SUM($AW3:INDEX($U3:$AW3,$T3-AN$8)) -> 399 | BR3: =SUM($AW3:INDEX($U3:$AW3,$T3-AO$8)) -> 407 | BS3: =SUM($AW3:INDEX($U3:$AW3,$T3-AP$8)) -> 414 | BT3: =SUM($AW3:INDEX($U3:$AW3,$T3-AQ$8)) -> 420 | BU3: =SUM($AW3:INDEX($U3:$AW3,$T3-AR$8)) -> 425 | BV3: =SUM($AW3:INDEX($U3:$AW3,$T3-AS$8)) -> 429 | BW3: =SUM($AW3:INDEX($U3:$AW3,$T3-AT$8)) -> 432 | BX3: =SUM($AW3:INDEX($U3:$AW3,$T3-AU$8)) -> 434
E4: Кол-во сотрудников | F4: 100 | H4: =F4*B8 -> 36500 | T4: 30 | U4: 1 | V4: 2 | W4: 3 | X4: 4 | Y4: 5 | Z4: 6 | AA4: 7 | AB4: 8 | AC4: 9 | AD4: 10 | AE4: 11 | AF4: 12 | AG4: 13 | AH4: 14 | AI4: 15 | AJ4: 16 | AK4: 17 | AL4: 18 | AM4: 19 | AN4: 20 | AO4: 21 | AP4: 22 | AQ4: 23 | AR4: 24 | AS4: 25 | AT4: 26 | AU4: 27 | AV4: 28 | AW4: 29 | AX4: 30 | AY4: =SUM($AX4:INDEX($U4:$AX4,$T4-U$8)) -> 59 | AZ4: =SUM($AX4:INDEX($U4:$AX4,$T4-V$8)) -> 87 | BA4: =SUM($AX4:INDEX($U4:$AX4,$T4-W$8)) -> 114 | BB4: =SUM($AX4:INDEX($U4:$AX4,$T4-X$8)) -> 140 | BC4: =SUM($AX4:INDEX($U4:$AX4,$T4-Y$8)) -> 165 | BD4: =SUM($AX4:INDEX($U4:$AX4,$T4-Z$8)) -> 189 | BE4: =SUM($AX4:INDEX($U4:$AX4,$T4-AA$8)) -> 212 | BF4: =SUM($AX4:INDEX($U4:$AX4,$T4-AB$8)) -> 234 | BG4: =SUM($AX4:INDEX($U4:$AX4,$T4-AC$8)) -> 255 | BH4: =SUM($AX4:INDEX($U4:$AX4,$T4-AD$8)) -> 275 | BI4: =SUM($AX4:INDEX($U4:$AX4,$T4-AE$8)) -> 294 | BJ4: =SUM($AX4:INDEX($U4:$AX4,$T4-AF$8)) -> 312 | BK4: =SUM($AX4:INDEX($U4:$AX4,$T4-AG$8)) -> 329 | BL4: =SUM($AX4:INDEX($U4:$AX4,$T4-AH$8)) -> 345 | BM4: =SUM($AX4:INDEX($U4:$AX4,$T4-AI$8)) -> 360 | BN4: =SUM($AX4:INDEX($U4:$AX4,$T4-AJ$8)) -> 374 | BO4: =SUM($AX4:INDEX($U4:$AX4,$T4-AK$8)) -> 387 | BP4: =SUM($AX4:INDEX($U4:$AX4,$T4-AL$8)) -> 399 | BQ4: =SUM($AX4:INDEX($U4:$AX4,$T4-AM$8)) -> 410 | BR4: =SUM($AX4:INDEX($U4:$AX4,$T4-AN$8)) -> 420 | BS4: =SUM($AX4:INDEX($U4:$AX4,$T4-AO$8)) -> 429 | BT4: =SUM($AX4:INDEX($U4:$AX4,$T4-AP$8)) -> 437 | BU4: =SUM($AX4:INDEX($U4:$AX4,$T4-AQ$8)) -> 444 | BV4: =SUM($AX4:INDEX($U4:$AX4,$T4-AR$8)) -> 450 | BW4: =SUM($AX4:INDEX($U4:$AX4,$T4-AS$8)) -> 455 | BX4: =SUM($AX4:INDEX($U4:$AX4,$T4-AT$8)) -> 459 | BY4: =SUM($AX4:INDEX($U4:$AX4,$T4-AU$8)) -> 462
E5: Кол-во отпусков в году | F5: =F4*2 -> 200 | G5: по 35 к.д. | H5: =100*35*2 -> 7000 | T5: 31 | U5: 1 | V5: 2 | W5: 3 | X5: 4 | Y5: 5 | Z5: 6 | AA5: 7 | AB5: 8 | AC5: 9 | AD5: 10 | AE5: 11 | AF5: 12 | AG5: 13 | AH5: 14 | AI5: 15 | AJ5: 16 | AK5: 17 | AL5: 18 | AM5: 19 | AN5: 20 | AO5: 21 | AP5: 22 | AQ5: 23 | AR5: 24 | AS5: 25 | AT5: 26 | AU5: 27 | AV5: 28 | AW5: 29 | AX5: 30 | AY5: 31 | AZ5: =SUM($AY5:INDEX($U5:$AY5,$T5-U$8)) -> 61 | BA5: =SUM($AY5:INDEX($U5:$AY5,$T5-V$8)) -> 90 | BB5: =SUM($AY5:INDEX($U5:$AY5,$T5-W$8)) -> 118 | BC5: =SUM($AY5:INDEX($U5:$AY5,$T5-X$8)) -> 145 | BD5: =SUM($AY5:INDEX($U5:$AY5,$T5-Y$8)) -> 171 | BE5: =SUM($AY5:INDEX($U5:$AY5,$T5-Z$8)) -> 196 | BF5: =SUM($AY5:INDEX($U5:$AY5,$T5-AA$8)) -> 220 | BG5: =SUM($AY5:INDEX($U5:$AY5,$T5-AB$8)) -> 243 | BH5: =SUM($AY5:INDEX($U5:$AY5,$T5-AC$8)) -> 265 | BI5: =SUM($AY5:INDEX($U5:$AY5,$T5-AD$8)) -> 286 | BJ5: =SUM($AY5:INDEX($U5:$AY5,$T5-AE$8)) -> 306 | BK5: =SUM($AY5:INDEX($U5:$AY5,$T5-AF$8)) -> 325 | BL5: =SUM($AY5:INDEX($U5:$AY5,$T5-AG$8)) -> 343 | BM5: =SUM($AY5:INDEX($U5:$AY5,$T5-AH$8)) -> 360 | BN5: =SUM($AY5:INDEX($U5:$AY5,$T5-AI$8)) -> 376 | BO5: =SUM($AY5:INDEX($U5:$AY5,$T5-AJ$8)) -> 391 | BP5: =SUM($AY5:INDEX($U5:$AY5,$T5-AK$8)) -> 405 | BQ5: =SUM($AY5:INDEX($U5:$AY5,$T5-AL$8)) -> 418 | BR5: =SUM($AY5:INDEX($U5:$AY5,$T5-AM$8)) -> 430 | BS5: =SUM($AY5:INDEX($U5:$AY5,$T5-AN$8)) -> 441 | BT5: =SUM($AY5:INDEX($U5:$AY5,$T5-AO$8)) -> 451 | BU5: =SUM($AY5:INDEX($U5:$AY5,$T5-AP$8)) -> 460 | BV5: =SUM($AY5:INDEX($U5:$AY5,$T5-AQ$8)) -> 468 | BW5: =SUM($AY5:INDEX($U5:$AY5,$T5-AR$8)) -> 475 | BX5: =SUM($AY5:INDEX($U5:$AY5,$T5-AS$8)) -> 481 | BY5: =SUM($AY5:INDEX($U5:$AY5,$T5-AT$8)) -> 486 | BZ5: =SUM($AY5:INDEX($U5:$AY5,$T5-AU$8)) -> 490
B7: 2017 | E7: Квота % отсутствия человеко-дней в месяце от состава компании (т.е. - 100 человек * кол-во дней в месяце) | U7: осн расчет уход в отпуск по кал дням
B8: =SUM(B9:B20) -> 365 | E8: Месяц | F8: % | G8: Человеко-дни | H8: Кол-во сотрудников которых можно отпустить в месяце | J8: чел-дни в мес | K8: чел в день | L8: округл чел в день | M8: округл чел-дни в мес | N8: разница округл и матем чел в день | O8: позиция разницы в накоп тебл чел в мес | P8: поз не более для корректировки в начале мес | Q8: размер корректировки в начал мес | S8: поз точно для корректировки в середине мес | U8: 1 | V8: 2 | W8: 3 | X8: 4 | Y8: 5 | Z8: 6 | AA8: 7 | AB8: 8 | AC8: 9 | AD8: 10 | AE8: 11 | AF8: 12 | AG8: 13 | AH8: 14 | AI8: 15 | AJ8: 16 | AK8: 17 | AL8: 18 | AM8: 19 | AN8: 20 | AO8: 21 | AP8: 22 | AQ8: 23 | AR8: 24 | AS8: 25 | AT8: 26 | AU8: 27 | AV8: 28 | AW8: 29 | AX8: 30 | AY8: 31
A9: 1 | B9: =DAY(DATE($B$7,A9+1,)) -> 31 | C9: =DATE($B$7,A9,1) -> 2017-01-01 | D9: =DATE($B$7,A9,B9) -> 2017-01-31 | E9: Январь | F9: 30 | G9: =B9*($F$4/100*F9) -> 930 | H9: =SUMPRODUCT(($B9+1-$U$8:$AY$8)*U9:AY9) -> 930 | I9: =SUM((DATE($B$7,$A9,$U$8:$AY$8)>=$C9)*(DATE($B$7,$A9,$U$8:$AY$8)+ROW($1:$34)<=$D9)*$U$9:$AY9) -> 871 | J9: =(1+B9)*B9/2 -> 496 | K9: =G9/J9 -> 1.875 | L9: =ROUND(K9,) -> 2 | M9: =L9*J9 -> 992 | N9: =M9-G9 -> 62 | O9: =MATCH(ABS(N9),INDEX($U$2:$CC$5,$B9-27,)) -> 32 | P9: =MAX(,O9-B9+1) -> 2 | Q9: =IF(O9=0,,INDEX($U$2:$CC$5,$B9-27,$O9)) -> 61 | R9: =IF(N9=0,,N9-Q9*SIGN($N9)) -> 1 | S9: =ABS(IF(P9=0,O9,ABS(R9))-B9-1) -> 31 | U9: =IF(U$8<=$B9,$L9-SIGN($N9)*(U$8<=$P9)-SIGN($N9)*(U$8=$S9),) -> 1 | V9: 1 | W9: 2 | X9: 2 | Y9: 2 | Z9: 2 | AA9: 2 | AB9: 2 | AC9: 2 | AD9: 2 | AE9: 2 | AF9: 2 | AG9: 2 | AH9: 2 | AI9: 2 | AJ9: 2 | AK9: 2 | AL9: 2 | AM9: 2 | AN9: 2 | AO9: 2 | AP9: 2 | AQ9: 2 | AR9: 2 | AS9: 2 | AT9: 2 | AU9: 2 | AV9: 2 | AW9: 2 | AX9: 2 | AY9: 1
A10: 2 | B10: =DAY(DATE($B$7,A10+1,)) -> 28 | C10: =DATE($B$7,A10,1) -> 2017-02-01 | D10: =DATE($B$7,A10,B10) -> 2017-02-28 | E10: Февраль | F10: 30 | G10: =B10*($F$4/100*F10) -> 840 | H10: =SUMPRODUCT(($B10+1-$U$8:$AY$8)*U10:AY10) -> 840 | I10: =SUM((DATE($B$7,$A10,$U$8:$AY$8)>=$C10)*(DATE($B$7,$A10,$U$8:$AY$8)+ROW($1:$34)<=$D10)*$U$9:$AY10) ->  | J10: =(1+B10)*B10/2 -> 406 | K10: =G10/J10 -> 2.068965517 | L10: =ROUND(K10,) -> 2 | M10: =L10*J10 -> 812 | N10: =M10-G10 -> -28 | O10: 28 | P10: 1 | Q10: =IF(O10=0,,INDEX($U$2:$CC$5,$B10-27,$O10)) -> 28 | R10: =IF(N10=0,,N10-Q10*SIGN($N10)) -> 0 | S10: =ABS(IF(P10=0,O10,ABS(R10))-B10-1) -> 29 | U10: =IF(U$8<=$B10,$L10-SIGN($N10)*(U$8<=$P10)-SIGN($N10)*(U$8=$S10),) -> 3 | V10: =IF(V$8<=$B10,$L10-SIGN($N10)*(V$8<=$P10)-SIGN($N10)*(V$8=$S10),) -> 2 | W10: 2 | X10: 2 | Y10: 2 | Z10: 2 | AA10: 2 | AB10: 2 | AC10: 2 | AD10: 2 | AE10: 2 | AF10: =IF(AF$8<=$B10,$L10-SIGN($N10)*(AF$8<=$P10)-SIGN($N10)*(AF$8=$S10),) -> 2 | AG10: 2 | AH10: 2 | AI10: 2 | AJ10: 2 | AK10: 2 | AL10: 2 | AM10: 2 | AN10: 2 | AO10: 2 | AP10: =IF(AP$8<=$B10,$L10-SIGN($N10)*(AP$8<=$P10)-SIGN($N10)*(AP$8=$S10),) -> 2 | AQ10: 2 | AR10: 2 | AS10: 2 | AT10: 2 | AU10: 2 | AV10: 2 | AW10: 0 | AX10: 0 | AY10: 0
A11: 3 | B11: 31 | C11: 2017-03-01 | D11: 2017-03-31 | E11: Март | F11: 25 | G11: 775 | H11: 775 | I11: =SUM((DATE($B$7,$A11,$U$8:$AY$8)>=$C11)*(DATE($B$7,$A11,$U$8:$AY$8)+ROW($1:$34)<=$D11)*$U$9:$AY11) ->  | J11: 496 | K11: 1.5625 | L11: 2 | M11: 992 | N11: 217 | O11: 37 | P11: 7 | Q11: 196 | R11: 21 | S11: 11 | U11: 1 | V11: 1 | W11: 1 | X11: 1 | Y11: 1 | Z11: 1 | AA11: 1 | AB11: 2 | AC11: 2 | AD11: 2 | AE11: 1 | AF11: 2 | AG11: 2 | AH11: 2 | AI11: 2 | AJ11: 2 | AK11: 2 | AL11: 2 | AM11: 2 | AN11: 2 | AO11: 2 | AP11: 2 | AQ11: 2 | AR11: 2 | AS11: 2 | AT11: 2 | AU11: 2 | AV11: 2 | AW11: 2 | AX11: 2 | AY11: 2
A12: 4 | B12: 30 | C12: 2017-04-01 | D12: 2017-04-30 | E12: Апрель | F12: 25 | G12: 750 | H12: 750 | I12: =SUM((DATE($B$7,$A12,$U$8:$AY$8)>=$C12)*(DATE($B$7,$A12,$U$8:$AY$8)+ROW($1:$34)<=$D12)*$U$9:$AY12) ->  | J12: 465 | K12: 1.612903226 | L12: 2 | M12: 930 | N12: 180 | O12: 35 | P12: 6 | Q12: 165 | R12: 15 | S12: 16 | U12: 1 | V12: 1 | W12: 1 | X12: 1 | Y12: 1 | Z12: 1 | AA12: 2 | AB12: 2 | AC12: 2 | AD12: 2 | AE12: 2 | AF12: 2 | AG12: 2 | AH12: 2 | AI12: 2 | AJ12: 1 | AK12: 2 | AL12: 2 | AM12: 2 | AN12: 2 | AO12: 2 | AP12: 2 | AQ12: 2 | AR12: 2 | AS12: 2 | AT12: 2 | AU12: 2 | AV12: 2 | AW12: 2 | AX12: 2 | AY12: 0
A13: 5 | B13: 31 | C13: 2017-05-01 | D13: 2017-05-31 | E13: Май | F13: 15 | G13: 465 | H13: 465 | I13: =SUM((DATE($B$7,$A13,$U$8:$AY$8)>=$C13)*(DATE($B$7,$A13,$U$8:$AY$8)+ROW($1:$34)<=$D13)*$U$9:$AY13) ->  | J13: 496 | K13: 0.9375 | L13: 1 | M13: 496 | N13: 31 | O13: 31 | P13: 1 | Q13: 31 | R13: 0 | S13: 32 | U13: 0 | V13: 1 | W13: 1 | X13: 1 | Y13: 1 | Z13: 1 | AA13: 1 | AB13: 1 | AC13: 1 | AD13: 1 | AE13: 1 | AF13: 1 | AG13: 1 | AH13: 1 | AI13: 1 | AJ13: 1 | AK13: 1 | AL13: 1 | AM13: 1 | AN13: 1 | AO13: 1 | AP13: 1 | AQ13: 1 | AR13: 1 | AS13: 1 | AT13: 1 | AU13: 1 | AV13: 1 | AW13: 1 | AX13: 1 | AY13: 1
A14: 6 | B14: 30 | C14: 2017-06-01 | D14: 2017-06-30 | E14: Июнь | F14: 10 | G14: 300 | H14: 300 | I14: =SUM((DATE($B$7,$A14,$U$8:$AY$8)>=$C14)*(DATE($B$7,$A14,$U$8:$AY$8)+ROW($1:$34)<=$D14)*$U$9:$AY14) ->  | J14: 465 | K14: 0.6451612903 | L14: 1 | M14: 465 | N14: 165 | O14: 35 | P14: 6 | Q14: 165 | R14: 0 | S14: 31 | U14: 0 | V14: 0 | W14: 0 | X14: 0 | Y14: 0 | Z14: 0 | AA14: 1 | AB14: 1 | AC14: 1 | AD14: 1 | AE14: 1 | AF14: 1 | AG14: 1 | AH14: 1 | AI14: 1 | AJ14: 1 | AK14: 1 | AL14: 1 | AM14: 1 | AN14: 1 | AO14: 1 | AP14: 1 | AQ14: 1 | AR14: 1 | AS14: 1 | AT14: 1 | AU14: 1 | AV14: 1 | AW14: 1 | AX14: 1 | AY14: 0
A15: 7 | B15: 31 | C15: 2017-07-01 | D15: 2017-07-31 | E15: Июль | F15: 10 | G15: 310 | H15: 310 | I15: =SUM((DATE($B$7,$A15,$U$8:$AY$8)>=$C15)*(DATE($B$7,$A15,$U$8:$AY$8)+ROW($1:$34)<=$D15)*$U$9:$AY15) ->  | J15: 496 | K15: 0.625 | L15: 1 | M15: 496 | N15: 186 | O15: 36 | P15: 6 | Q15: 171 | R15: 15 | S15: 17 | U15: 0 | V15: 0 | W15: 0 | X15: 0 | Y15: 0 | Z15: 0 | AA15: 1 | AB15: 1 | AC15: 1 | AD15: 1 | AE15: 1 | AF15: 1 | AG15: 1 | AH15: 1 | AI15: 1 | AJ15: 1 | AK15: 0 | AL15: 1 | AM15: 1 | AN15: 1 | AO15: 1 | AP15: 1 | AQ15: 1 | AR15: 1 | AS15: 1 | AT15: 1 | AU15: 1 | AV15: 1 | AW15: 1 | AX15: 1 | AY15: 1
A16: 8 | B16: 31 | C16: 2017-08-01 | D16: 2017-08-31 | E16: Август | F16: 10 | G16: 310 | H16: 310 | I16: =SUM((DATE($B$7,$A16,$U$8:$AY$8)>=$C16)*(DATE($B$7,$A16,$U$8:$AY$8)+ROW($1:$34)<=$D16)*$U$9:$AY16) ->  | J16: 496 | K16: 0.625 | L16: 1 | M16: 496 | N16: 186 | O16: 36 | P16: 6 | Q16: 171 | R16: 15 | S16: 17 | U16: 0 | V16: 0 | W16: 0 | X16: 0 | Y16: 0 | Z16: 0 | AA16: 1 | AB16: 1 | AC16: 1 | AD16: 1 | AE16: 1 | AF16: 1 | AG16: 1 | AH16: 1 | AI16: 1 | AJ16: 1 | AK16: 0 | AL16: 1 | AM16: 1 | AN16: 1 | AO16: 1 | AP16: 1 | AQ16: 1 | AR16: 1 | AS16: 1 | AT16: 1 | AU16: 1 | AV16: 1 | AW16: 1 | AX16: 1 | AY16: 1
A17: 9 | B17: 30 | C17: 2017-09-01 | D17: 2017-09-30 | E17: Сентябрь | F17: 15 | G17: 450 | H17: 450 | I17: =SUM((DATE($B$7,$A17,$U$8:$AY$8)>=$C17)*(DATE($B$7,$A17,$U$8:$AY$8)+ROW($1:$34)<=$D17)*$U$9:$AY17) ->  | J17: 465 | K17: 0.9677419355 | L17: 1 | M17: 465 | N17: 15 | O17: 15 | P17: 0 | Q17: 15 | R17: 0 | S17: 16 | U17: 1 | V17: =IF(V$8<=$B17,$L17-SIGN($N17)*(V$8<=$P17)-SIGN($N17)*(V$8=$S17),) -> 1 | W17: 1 | X17: 1 | Y17: 1 | Z17: 1 | AA17: 1 | AB17: 1 | AC17: 1 | AD17: 1 | AE17: 1 | AF17: 1 | AG17: 1 | AH17: 1 | AI17: 1 | AJ17: 0 | AK17: =IF(AK$8<=$B17,$L17-SIGN($N17)*(AK$8<=$P17)-SIGN($N17)*(AK$8=$S17),) -> 1 | AL17: 1 | AM17: 1 | AN17: 1 | AO17: 1 | AP17: 1 | AQ17: 1 | AR17: 1 | AS17: 1 | AT17: 1 | AU17: 1 | AV17: 1 | AW17: 1 | AX17: 1 | AY17: 0
A18: 10 | B18: 31 | C18: 2017-10-01 | D18: 2017-10-31 | E18: Октябрь | F18: 25 | G18: 775 | H18: 775 | I18: =SUM((DATE($B$7,$A18,$U$8:$AY$8)>=$C18)*(DATE($B$7,$A18,$U$8:$AY$8)+ROW($1:$34)<=$D18)*$U$9:$AY18) ->  | J18: 496 | K18: 1.5625 | L18: 2 | M18: 992 | N18: 217 | O18: 37 | P18: 7 | Q18: 196 | R18: 21 | S18: 11 | U18: 1 | V18: 1 | W18: 1 | X18: 1 | Y18: 1 | Z18: 1 | AA18: 1 | AB18: 2 | AC18: 2 | AD18: 2 | AE18: 1 | AF18: 2 | AG18: 2 | AH18: 2 | AI18: 2 | AJ18: 2 | AK18: 2 | AL18: 2 | AM18: 2 | AN18: 2 | AO18: 2 | AP18: 2 | AQ18: 2 | AR18: 2 | AS18: 2 | AT18: 2 | AU18: 2 | AV18: 2 | AW18: 2 | AX18: 2 | AY18: 2
A19: 11 | B19: 30 | C19: 2017-11-01 | D19: 2017-11-30 | E19: Ноябрь | F19: 25 | G19: 750 | H19: 750 | I19: =SUM((DATE($B$7,$A19,$U$8:$AY$8)>=$C19)*(DATE($B$7,$A19,$U$8:$AY$8)+ROW($1:$34)<=$D19)*$U$9:$AY19) ->  | J19: 465 | K19: 1.612903226 | L19: 2 | M19: 930 | N19: 180 | O19: 35 | P19: 6 | Q19: 165 | R19: 15 | S19: 16 | U19: 1 | V19: 1 | W19: 1 | X19: 1 | Y19: 1 | Z19: 1 | AA19: 2 | AB19: 2 | AC19: 2 | AD19: 2 | AE19: 2 | AF19: 2 | AG19: 2 | AH19: 2 | AI19: 2 | AJ19: 1 | AK19: 2 | AL19: 2 | AM19: 2 | AN19: 2 | AO19: 2 | AP19: 2 | AQ19: 2 | AR19: 2 | AS19: 2 | AT19: 2 | AU19: 2 | AV19: 2 | AW19: 2 | AX19: 2 | AY19: 0
A20: 12 | B20: 31 | C20: 2017-12-01 | D20: 2017-12-31 | E20: Декабрь | F20: 20 | G20: 620 | H20: 620 | I20: =SUM((DATE($B$7,$A20,$U$8:$AY$8)>=$C20)*(DATE($B$7,$A20,$U$8:$AY$8)+ROW($1:$34)<=$D20)*$U$9:$AY20) ->  | J20: 496 | K20: 1.25 | L20: 1 | M20: 496 | N20: -124 | O20: 34 | P20: 4 | Q20: 118 | R20: -6 | S20: 26 | U20: 2 | V20: 2 | W20: 2 | X20: 2 | Y20: 1 | Z20: 1 | AA20: 1 | AB20: 1 | AC20: 1 | AD20: 1 | AE20: 1 | AF20: 1 | AG20: 1 | AH20: 1 | AI20: 1 | AJ20: 1 | AK20: 1 | AL20: 1 | AM20: 1 | AN20: 1 | AO20: 1 | AP20: 1 | AQ20: 1 | AR20: 1 | AS20: 1 | AT20: 2 | AU20: 1 | AV20: 1 | AW20: 1 | AX20: 1 | AY20: 1
E21: Итого: | F21: =SUM(F9:F20) -> 240 | G21: =SUM(G9:G20) -> 7275 | H21: =SUM(H9:H20) -> 7275 | M21: =SUM(M9:M20) -> 8562 | N21: =SUM(N9:N20) -> 1287 | Q21: =SUM(Q9:Q20*SIGN(N9:N20)) -> 1190 | R21: =SUM(R9:R20) -> 97
H22: =H21-G21 -> 0 | N22: =M21-N21 -> 7275 | R22: =Q21+R21 -> 1287
